Workbook

Sheet 18 perioodi eelarve
B1: ettevõtte eelarve
G2: ALGKUUPÄEV | H2: 2011-01-01 | I2: AJAVAHEMIKU PIKKUS (PÄEVADES) | K2: 14 | L2: LÕPPKUUPÄEV | M2: =TEXT(T5,"d.mm.yyyy") -> 27.08.2013
C5: =UPPER(TEXT(H2,"dd-mmm")) -> 01-JAAN | D5: =UPPER(TEXT(C5+Päevavahemik,"dd-mmm")) -> 15-JAAN | E5: =UPPER(TEXT(D5+Päevavahemik,"dd-mmm")) -> 29-JAAN | F5: 12-VEEBR | G5: 26-VEEBR | H5: 12-MÄRTS | I5: 26-MÄRTS | J5: 09-APR | K5: 23-APR | L5: 07-MAI | M5: 21-MAI | N5: 04-JUUNI | O5: 18-JUUNI | P5: 02-JUULI | Q5: 16-JUULI | R5: 30-JUULI | S5: 13-AUG | T5: 27-AUG | U5: KOKKU | V5: TREND
B6: NETOTULU | C6: =Tulutabel[[#Totals],[Nädal 1]]-Kulutabel[[#Totals],[Nädal 1]] -> 1,750.00 € | D6: =Tulutabel[[#Totals],[Nädal 2]]-Kulutabel[[#Totals],[Nädal 2]] -> 2,236.00 € | E6: =Tulutabel[[#Totals],[Nädal 3]]-Kulutabel[[#Totals],[Nädal 3]] -> 1,442.00 € | F6: =Tulutabel[[#Totals],[Nädal 4]]-Kulutabel[[#Totals],[Nädal 4]] -> 2,253.00 € | G6: =Tulutabel[[#Totals],[Nädal 5]]-Kulutabel[[#Totals],[Nädal 5]] -> 1,533.00 € | H6: =Tulutabel[[#Totals],[Nädal 6]]-Kulutabel[[#Totals],[Nädal 6]] -> 1,086.00 € | I6: =Tulutabel[[#Totals],[Nädal 7]]-Kulutabel[[#Totals],[Nädal 7]] -> 1,594.00 € | J6: =Tulutabel[[#Totals],[Nädal 8]]-Kulutabel[[#Totals],[Nädal 8]] -> 0 | K6: =Tulutabel[[#Totals],[Nädal 9]]-Kulutabel[[#Totals],[Nädal 9]] -> 0 | L6: =Tulutabel[[#Totals],[Nädal 10]]-Kulutabel[[#Totals],[Nädal 10]] -> 0 | M6: =Tulutabel[[#Totals],[Nädal 11]]-Kulutabel[[#Totals],[Nädal 11]] -> 0 | N6: =Tulutabel[[#Totals],[Nädal 12]]-Kulutabel[[#Totals],[Nädal 12]] -> 0 | O6: =Tulutabel[[#Totals],[Nädal 13]]-Kulutabel[[#Totals],[Nädal 13]] -> 0 | P6: =Tulutabel[[#Totals],[Nädal 14]]-Kulutabel[[#Totals],[Nädal 14]] -> 0 | Q6: =Tulutabel[[#Totals],[Nädal 15]]-Kulutabel[[#Totals],[Nädal 15]] -> 0 | R6: =Tulutabel[[#Totals],[Nädal 16]]-Kulutabel[[#Totals],[Nädal 16]] -> 0 | S6: =Tulutabel[[#Totals],[Nädal 17]]-Kulutabel[[#Totals],[Nädal 17]] -> 0 | T6: =Tulutabel[[#Totals],[Nädal 18]]-Kulutabel[[#Totals],[Nädal 18]] -> 0 | U6: =Tulutabel[[#Totals],[Kokku]]-Kulutabel[[#Totals],[Kokku]] -> 10,744.00 €
A8: tulud
B9: TULUÜKSUS 1 | C9: 3,000.00 € | D9: 3,500.00 € | E9: 2,978.00 € | F9: 3,384.00 € | G9: 2,858.00 € | H9: 2,809.00 € | I9: 3,220.00 € | U9: =SUM(Tulutabel[[#This Row],[Nädal 1]:[Nädal 18]]) -> 21,749.00 €
B10: TULUÜKSUS 2 | C10: 1,150.00 | D10: 1,200.00 | E10: 1,144.00 | F10: 1,400.00 | G10: 1,358.00 | H10: 1,154.00 | I10: 1,245.00 | U10: =SUM(Tulutabel[[#This Row],[Nädal 2]:[Nädal 18]]) -> 7,501.00
B11: TULUÜKSUS 3 | C11: 300.00 | D11: 350.00 | E11: 392.00 | F11: 326.00 | G11: 381.00 | H11: 364.00 | I11: 315.00 | U11: =SUM(Tulutabel[[#This Row],[Nädal 1]:[Nädal 18]]) -> 2,428.00
B12: Kogutulu | C12: =SUBTOTAL(109,Tulutabel[Nädal 1]) -> 4,450.00 € | D12: =SUBTOTAL(109,Tulutabel[Nädal 2]) -> 5,050.00 € | E12: =SUBTOTAL(109,Tulutabel[Nädal 3]) -> 4,514.00 € | F12: =SUBTOTAL(109,Tulutabel[Nädal 4]) -> 5,110.00 € | G12: =SUBTOTAL(109,Tulutabel[Nädal 5]) -> 4,597.00 € | H12: =SUBTOTAL(109,Tulutabel[Nädal 6]) -> 4,327.00 € | I12: =SUBTOTAL(109,Tulutabel[Nädal 7]) -> 4,780.00 € | J12: =SUBTOTAL(109,Tulutabel[Nädal 8]) -> 0 | K12: =SUBTOTAL(109,Tulutabel[Nädal 9]) -> 0 | L12: =SUBTOTAL(109,Tulutabel[Nädal 10]) -> 0 | M12: =SUBTOTAL(109,Tulutabel[Nädal 11]) -> 0 | N12: =SUBTOTAL(109,Tulutabel[Nädal 12]) -> 0 | O12: =SUBTOTAL(109,Tulutabel[Nädal 13]) -> 0 | P12: =SUBTOTAL(109,Tulutabel[Nädal 14]) -> 0 | Q12: =SUBTOTAL(109,Tulutabel[Nädal 15]) -> 0 | R12: =SUBTOTAL(109,Tulutabel[Nädal 16]) -> 0 | S12: =SUBTOTAL(109,Tulutabel[Nädal 17]) -> 0 | T12: =SUBTOTAL(109,Tulutabel[Nädal 18]) -> 0 | U12: =SUBTOTAL(109,Tulutabel[Kokku]) -> 31,678.00 €
A14: kulud
B15: kulu
B16: PALGAD | C16: 1,500.00 € | D16: 1,577.00 € | E16: 1,823.00 € | F16: 1,529.00 € | G16: 1,759.00 € | H16: 1,947.00 € | I16: 1,875.00 € | U16: =SUM(Kulutabel[[#This Row],[Nädal 1]:[Nädal 18]]) -> 12,010.00 €
B17: ÜÜR | C17: 1,000.00 | D17: 1,000.00 | E17: 1,000.00 | F17: 1,000.00 | G17: 1,000.00 | H17: 1,000.00 | I17: 1,000.00 | U17: =SUM(Kulutabel[[#This Row],[Nädal 1]:[Nädal 18]]) -> 7,000.00
B18: ELEKTER | C18: 40.00 | D18: 43.00 | E18: 40.00 | F18: 42.00 | G18: 45.00 | H18: 40.00 | I18: 42.00 | U18: =SUM(Kulutabel[[#This Row],[Nädal 1]:[Nädal 18]]) -> 292.00
B19: TELEFON | C19: 12.00 | D19: 11.00 | E19: 13.00 | F19: 14.00 | G19: 11.00 | H19: 15.00 | I19: 15.00 | U19: =SUM(Kulutabel[[#This Row],[Nädal 1]:[Nädal 18]]) -> 91.00
B20: INTERNET | C20: 15.00 | D20: 15.00 | E20: 15.00 | F20: 15.00 | G20: 15.00 | H20: 15.00 | I20: 15.00 | U20: =SUM(Kulutabel[[#This Row],[Nädal 1]:[Nädal 18]]) -> 105.00
B21: VESI | C21: 11.00 | D21: 10.00 | E21: 13.00 | F21: 10.00 | G21: 13.00 | H21: 10.00 | I21: 12.00 | U21: =SUM(Kulutabel[[#This Row],[Nädal 1]:[Nädal 18]]) -> 79.00
B22: KÜTE | C22: 23.00 | D22: 27.00 | E22: 26.00 | F22: 27.00 | G22: 22.00 | H22: 29.00 | I22: 21.00 | U22: =SUM(Kulutabel[[#This Row],[Nädal 1]:[Nädal 18]]) -> 175.00
B23: JÄÄTMEKÄITLUS | C23: 4.00 | D23: 4.00 | E23: 4.00 | F23: 4.00 | G23: 4.00 | H23: 4.00 | I23: 4.00 | U23: =SUM(Kulutabel[[#This Row],[Nädal 1]:[Nädal 18]]) -> 28.00
B24: KAABEL-TV | C24: 10.00 | D24: 10.00 | E24: 10.00 | F24: 10.00 | G24: 10.00 | H24: 10.00 | I24: 10.00 | U24: =SUM(Kulutabel[[#This Row],[Nädal 1]:[Nädal 18]]) -> 70.00
B25: KONTORITARBED | C25: 25.00 | D25: 57.00 | E25: 68.00 | F25: 146.00 | G25: 125.00 | H25: 111.00 | I25: 132.00 | U25: =SUM(Kulutabel[[#This Row],[Nädal 1]:[Nädal 18]]) -> 664.00
B26: KINDLUSTUS | C26: 60.00 | D26: 60.00 | E26: 60.00 | F26: 60.00 | G26: 60.00 | H26: 60.00 | I26: 60.00 | U26: =SUM(Kulutabel[[#This Row],[Nädal 1]:[Nädal 18]]) -> 420.00
B27: KULUD KOKKU | C27: =SUBTOTAL(109,Kulutabel[Nädal 1]) -> 2,700.00 € | D27: =SUBTOTAL(109,Kulutabel[Nädal 2]) -> 2,814.00 € | E27: =SUBTOTAL(109,Kulutabel[Nädal 3]) -> 3,072.00 € | F27: =SUBTOTAL(109,Kulutabel[Nädal 4]) -> 2,857.00 € | G27: =SUBTOTAL(109,Kulutabel[Nädal 5]) -> 3,064.00 € | H27: =SUBTOTAL(109,Kulutabel[Nädal 6]) -> 3,241.00 € | I27: =SUBTOTAL(109,Kulutabel[Nädal 7]) -> 3,186.00 € | J27: =SUBTOTAL(109,Kulutabel[Nädal 8]) -> 0 | K27: =SUBTOTAL(109,Kulutabel[Nädal 9]) -> 0 | L27: =SUBTOTAL(109,Kulutabel[Nädal 10]) -> 0 | M27: =SUBTOTAL(109,Kulutabel[Nädal 11]) -> 0 | N27: =SUBTOTAL(109,Kulutabel[Nädal 12]) -> 0 | O27: =SUBTOTAL(109,Kulutabel[Nädal 13]) -> 0 | P27: =SUBTOTAL(109,Kulutabel[Nädal 14]) -> 0 | Q27: =SUBTOTAL(109,Kulutabel[Nädal 15]) -> 0 | R27: =SUBTOTAL(109,Kulutabel[Nädal 16]) -> 0 | S27: =SUBTOTAL(109,Kulutabel[Nädal 17]) -> 0 | T27: =SUBTOTAL(109,Kulutabel[Nädal 18]) -> 0 | U27: =SUBTOTAL(109,Kulutabel[Kokku]) -> 20,934.00 €
